Workbook

Sheet Сады БУ 2023
B1: Бюджет на 2023 год по МБДОУ
A2: КОСГУ | B2: Наименование показателя | C2: дкр | D2: Доп Эк | E2: 103
B4: РАСХОДЫ
A5: 210 | B5: Начисления на выплаты по оплате труда, всего: | E5: =E6+E12+E10 -> 13,577,457.09
A6: 211 | B6: Заработная плата, всего: | E6: =SUM(E7:E9) -> 10,428,154.45
B7: зарплата пед.персонала (НФЗ субвенция) | D7: П211004 | E7: 9,289,227.93
B8: с родплаты | D8: П211004 | E8: 768,708.39
B9: премия пед.работникам (ДопФк 13597) | D9: П211004 | E9: 370,218.13
A10: 212 | B10: Прочие выплаты, всего:
D11: 212,002
A12: 213 | B12: Начисления на выплаты по оплате труда, всего: | E12: =SUM(E13:E15) -> 3,149,302.64
B13: начисление на зар.пл. пед.перс. (НФЗ субвенция) | D13: П213004 | E13: 2,805,346.84
B14: с родплаты | D14: П213004 | E14: 232,149.93
B15: премия пед.работникам (ДопФк 13597) | D15: П213004 | E15: =ROUND(E9*0.302,2)-0.01 -> 111,805.87
A16: 220 | B16: Оплата работ, услуг: | E16: =E17+E22+E25+E34+E38+E66+E84 -> 5,386,200.74
A17: 221 | B17: Услуги связи, всего: | E17: =SUM(E18:E21) -> 34,586.29
B18: Услуги городской телефонной связи (местные соединения) | C18: 304 | D18: П221001 | E18: 13,800.00
B19: плата за предоставление доступа к сети Интернет | D19: П221002
B20: Услуги сети "Интернет" | D20: П221012 | E20: =12900+7886.29 -> 20,786.29
B21: Прочие | D21: П221099
A22: 222 | B22: Транспортные услуги, всего:
B23: Все виды расходов по транспортному обслуживанию (найм)
B24: Прочие | D24: П222099
A25: 223 | B25: Коммунальные услуги, всего: | E25: =SUM(E26:E33) -> 1,356,284.28
B26: Оплата потребления электрической энергии | C26: 304 | D26: П223001 | E26: 571,608.00
B27: Оплата потребления электрической энергии (разница +ассигнования) | C27: 304 | D27: П223001
B28: Оплата отопления и технологических нужд | C28: 304 | D28: П223002 | E28: 635,513.00
B29: Оплата потребления газа | C29: 304 | D29: П223003
B30: Оплата водоснабжения помещений | C30: 304 | D30: П223004 | E30: 88,333.00
B31: Оплата договоров на вывоз твердых коммунальных отходов с региональным оператором | C31: 304 | D31: П223017 | E31: 60,830.28
B32: разница асс-лимиты коммуналка | C32: 308 | D32: П223099
B33: Прочие расходы по ком расходам, не включенные в др коды ЖБО | C33: 304 | D33: П223099
A34: 224 | B34: Арендная плата за пользование имуществом, всего:
B35: Аренда помещения | D35: П224001
B36: Аренда транспорта | D36: П224002
B37: Прочие | D37: П224099
A38: 225 | B38: Работы, услуги по содержанию имущества, всего: | E38: =E39+E44+E45+E46+E50+E51+E57+E58+E59+E60+E47 -> 212,388.17
D39: П225002 | E39: =SUM(E40:E43) -> 12,819.13
B40: Сброс снега с крыши | C40: 304
B41: Дезинфекция, дезинсекция и дератизация | C41: 304 | E41: 10,209.67
B42: Обработка участков от комаров и клещей (аккарицидная обработка) | C42: 304 | E42: 2,609.46
B43: Содержание контейнерных площадок | C43: 304
B44: Проведение работ по ремонту и восстановлению эффективности функционирования коммунальных инженерных систем и коммуникаций, (опрессовка системы отопления) | C44: 304 | D44: П225003 | E44: 34,210.20
B45: З/пл внешт.сотр.(сброс снега с крыши) | C45: 304 | D45: П225005
B46: Текущий ремонт зданий (плановые кровельные и общестроительные работы, плановый ремонт коммунальных инженерных систем и коммуникаций, в том числе газового и теплового хозяйства, сетей водоснабжения, водоотведения и электроснабжения) | C46: 304 | D46: Н225007 | E46: 44,622.00
D47: П225036 | E47: =SUM(E48:E49) -> 0.00
B48: Противопожарные мероприятия (замеры сопротивления изоляции) | C48: 304
B49: Противопожарные мероприятия (огнезащитная обработка чердачных перекрытий) | C49: 304
B50: Техническое обслуживание и ремонт аппаратного обеспечения (оргтехника, медицинское оборудование, компьют.техника и т.д.), включающее контроль тех.состояния | D50: П225010 | E50: 20,000.00
D51: П225015 | E51: =SUM(E52:E56) -> 84,962.60
B52: Расходы на техническое обслуживание и ремонт оборудования (торговое, кухонное, офисное, лифты и т.п.), мебели, бытовой техники, инвентаря (торгового, кухонного, офисного и т.п.) | C52: 304 | E52: 17,793.08
B53: Расходы на техническое обслуживание и ремонт малых грузовых лифтов | C53: 304
B54: Расходы на техническое обслуживание вентиляционной системы | C54: 304
B55: Расходы на техническое обслуживание теплообменников | C55: 304 | E55: 43,584.00
B56: Расходы на техническое обслуживание узлов пог.регулир | C56: 304 | E56: 23,585.52
B57: Содержание в чистоте движимого имущества | C57: 304 | D57: П225016
B58: Техническое обслуживание приборов учета теплоучета и узла ГВС | C58: 304 | D58: П225035 | E58: 15,774.24
B59: Благоустройство территории (общестроительные работы вне здания, обрезка деревьев) | C59: 304 | D59: П225040
D60: П225098 | E60: =SUM(E61:E65) -> 0.00
B61: Экспертиза огнезащитной обработки
B62: Потребность на замену счётчиков и трансформаторов
B63: Прочие работы и услуги (техосвидетельствование лифтов) | C63: 304
B64: Обслуживание Блочно-Модульной Котельной
B65: Эксплуатационные расходы и прочие
A66: 226 | B66: Прочие работы, услуги, всего: | E66: =E67+E68+E72+E78+E79+E80+E71 -> 3,782,942.00
B67: Подписка | C67: 302 | D67: П226001
D68: П226003 | E68: =SUM(E69:E70) -> 3,749,814.00
B69: Организация питания бюджет | C69: 303
B70: Организация питания родплата | C70: 303 | E70: 3,749,814.00
B71: Предоставление во временное пользование мягкого инвентаря | D71: П226037
D72: П226052 | E72: =SUM(E73:E77) -> 17,000.00
B73: Обучение санит.гигиен.обуч.руковод.1500/1чел | C73: 304 | E73: 1,500.00
B74: Прочие обучения (охрана труда -1500руб.-1чел.) | C74: 304
B75: Обучение контрактным управляющим 5500/1чел | C75: 304 | E75: 5,500.00
B76: Прочие обучения (электробезопасность 4000/чел | C76: 304 | E76: 4,000.00
B77: Обучение ГО и ЧС 3000/1чел | C77: 304 | E77: 6,000.00
B78: Проведение инвентаризации, паспортизации основных средств | C78: 304 | D78: П226027
B79: Услуги охраны ЧОП с 2022г отдельно лимиты | C79: 304 | D79: П226050
D80: П226098 | E80: =SUM(E81:E83) -> 16,128.00
B81: Прочие услуги (аттестация рабочих мест СОУТ) | C81: 304
B82: Прочие услуги (потребность на обслуживание автоматизированного учёта электроэнергии) | C82: 304 | E82: =5376*3 -> 16,128.00
B83: Прчие работы и услуги (испытание наруж.металич.лестниц) | C83: 304
A84: 227 | B84: Страхование | E84: =SUM(E85) -> 0.00
B85: Услуги страхования (за исключ ОСАГО,Каско) | C85: 304 | D85: П227001
A86: 290 | B86: Прочие расходы, всего: | C86: 290 | E86: =E87+E88+E89+E92 -> 1,930,247.00
B87: Земельный налог | C87: 304 | D87: П291001 | E87: =104408+28583 -> 132,991.00
B88: Налог на имущество | C88: 304 | D88: П291014 | E88: 1,797,256.00
D89: П291005 | E89: =SUM(E90:E91) -> 0.00
B90: Госпошлина на переоформеление лицензии (мед.деятельность)
B91: Госпошлина на оформеление аккредитации
B92: Налог по упрощенной системе налогообложения для автономных учреждений | C92: 303 | D92: П291025
A93: 300 | B93: Поступление нефинансовых активов, всего: | E93: =E94+E98 -> 182,344.46
A94: 310 | B94: Увеличение стоимости основных средств, всего: | E94: =SUM(E95:E97) -> 52,907.53
B95: Приобретение автоматизированных рабочих мест, транспортно-коммуникационного оборудования, серверного, периферийного и т.п.оборудования | D95: Н310004 | E95: 17,907.53
B96: Первоочередныерасходы по увеличению стоимости основных средств | D96: П310098
B97: Прочие расходы по увеличению стоимости основных средств | D97: Н310099 | E97: 35,000.00
A98: 340 | B98: Увеличение стоимости материальных запасов, всего: | E98: =+E105+E106+E107+E110+E115+E99+E100+E101+E104 -> 129,436.93
B99: Закупка медикаментов, перевязочных средств (расходных материалов) город | C99: 303 | D99: П341006 | E99: 8,207.28
B100: Прочие расходы по увеличению стоимости строит.материалов город | C100: 304 | D100: Н344099 | E100: 18,511.83
D101: П345002 | E101: =SUM(E102:E103) -> 17,206.45
B102: Закупка мягкого инвентаря, одежды, обмундирования родплата | C102: 303
B103: мягкий инвентарь город | C103: 303 | E103: 17,206.45
B104: Закупка запчастей к транспорту и оборудованию | D104: П346003
B105: Закупка материалов, используемых в процессе обучения (субвенция) | C105: 302 | D105: П346004
B106: Приобретение канцелярских и хозяственных товаров город | C106: 303, 304 | D106: П346017 | E106: 37,023.66
D107: Н346099 | E107: =SUM(E108:E109) -> 13,160.90
B108: Прочие расходы по увеличение стоимости мат.запасов родплата | C108: 303 | E108: 13,160.90
B109: Прочие расходы по увеличение стоимости мат.запасов город | C109: 304
D110: П346098 | E110: =SUM(E111:E114) -> 35,326.81
B111: Прочие расходы по увеличение стоимости мат.запасов город | C111: 304 | E111: 18,115.81
B112: Прочие расходы по увеличение стоимости мат.запасов родплата | C112: 303
B113: Прочие расходы по увеличение стоимости мат.запасов (замена песка) | C113: 304 | E113: 15,000.00
B114: Прочие расходы по увеличение стоимости мат.запасов (замена песч.сол.смесь) | C114: 304 | E114: 2,211.00
B115: Призы, подарки при проведении мероприятий | C115: 304 | D115: Н349098
B116: ИТОГО РАСХОДОВ без охраны: | E116: =E5+E16+E86+E93 -> 21,076,249.29
B117: Прочие расходы по увеличение стоимости мат.запасов (ассигнования)
A118: 304 | B118: Услуги охраны ЧОП с 2022г отдельно лимиты сверх бюджета | C118: 304 | D118: П226050 | E118: 569,400.00
B119: ИТОГО РАСХОДОВ с охраной | E119: =E118+E116 -> 21,645,649.29
